bitfinex/quotes_BTCUSD_20240918
["timestamp","ask_amount","ask_price","bid_price","bid_amount"]
[1726674688706,0.03738884,59564.0,59563.0,0.507667]
[1726674689358,0.04860485,59564.0,59563.0,0.843445]
[1726674689579,0.52992508,59573.0,59568.0,0.167873]
[1726674689789,0.167864,59572.0,59568.0,0.167873]
[1726674690012,0.01118953,59572.0,59569.0,0.167872]
[1726674690434,0.17905553,59572.0,59567.0,0.335755]
[1726674690653,0.01118953,59572.0,59567.0,0.335755]
[1726674690917,0.01118953,59572.0,59569.0,0.167871]
[1726674691130,0.01618953,59572.0,59569.0,0.168871]
[1726674691572,0.01118953,59572.0,59569.0,0.167871]
[1726674691846,0.01118953,59572.0,59571.0,1.175065]
[1726674692065,0.01118953,59572.0,59571.0,1.51711896]
[1726674692274,0.0764,59590.0,59582.0,0.167835]
[1726674692495,0.16782,59588.0,59583.0,0.167831]
[1726674692717,0.05831985,59583.0,59582.0,0.167835]
[1726674692943,0.01871014,59587.0,59586.0,0.167824]
[1726674692944,0.06767912,59587.0,59586.0,0.167824]
[1726674693166,0.01871109,59587.0,59586.0,0.167824]
[1726674693435,0.04690112,59587.0,59586.0,0.167824]
[1726674693642,0.04690112,59587.0,59586.0,0.839122]
[1726674693878,0.03755025,59587.0,59586.0,0.839122]
[1726674694348,0.04355025,59587.0,59586.0,1.175771]
[1726674694565,0.03755025,59587.0,59586.0,1.174771]
[1726674694781,0.03755025,59587.0,59586.0,0.839122]
[1726674695003,0.04255025,59587.0,59586.0,0.001]
[1726674695217,0.07692015,59587.0,59586.0,0.001]
[1726674695432,0.08235955,59587.0,59586.0,0.168824]
[1726674695658,0.08235955,59587.0,59586.0,0.504473]
[1726674695868,0.03330118,59587.0,59586.0,0.840122]
[1726674696094,0.04247859,59587.0,59586.0,0.840122]
[1726674696957,0.16028259,59593.0,59589.0,0.167815]
[1726674697220,0.16028259,59593.0,59586.0,0.672298]
[1726674697221,0.19797016,59592.0,59588.0,0.167818]
[1726674697445,0.19797016,59592.0,59586.0,0.001]
[1726674697446,0.167817,59589.0,59586.0,0.001]
[1726674697667,0.0343579,59588.0,59586.0,0.001]
[1726674697888,0.03016216,59587.0,59586.0,0.168824]
[1726674698344,0.03981327,59587.0,59586.0,0.167824]
[1726674698629,0.03981327,59587.0,59581.0,0.335674]
[1726674698630,0.167825,59586.0,59581.0,0.335674]
[1726674698845,0.03016216,59585.0,59583.0,0.167831]
[1726674699075,0.03016216,59584.0,59583.0,0.167831]
[1726674699296,0.167837,59582.0,59571.0,0.335731]
[1726674699517,0.03418014,59581.0,59578.0,0.167846]
[1726674699770,0.029984,59580.0,59571.0,0.335731]
[1726674699986,0.00419614,59579.0,59578.0,0.167845]
[1726674700232,0.00963587,59580.0,59578.0,0.167847]
[1726674700451,0.00963587,59580.0,59577.0,0.335699]
[1726674700452,0.167833,59583.0,59579.0,0.167844]
[1726674700673,0.1978122,59582.0,59579.0,0.167844]
[1726674700886,0.335654,59586.0,59579.0,0.167844]
[1726674700887,0.0299772,59581.0,59580.0,0.167841]
[1726674701104,0.167837,59582.0,59577.0,0.335699]
[1726674701330,0.0299772,59581.0,59579.0,0.167843]
[1726674701539,0.0309772,59580.0,59579.0,0.167843]
[1726674701760,0.0299772,59580.0,59579.0,0.167843]
[1726674702012,0.0299772,59580.0,59575.0,0.335711]
[1726674702243,0.0299772,59580.0,59555.0,0.05196706]
[1726674702244,0.33574,59570.0,59552.0,0.04996706]
[1726674702464,0.503659,59564.0,59549.0,0.0039015]
[1726674702693,0.5336362,59564.0,59557.0,0.167903]
[1726674702932,0.5336362,59564.0,59553.0,0.33583]
[1726674702933,0.5336362,59564.0,59558.0,0.167901]
[1726674703169,0.5336362,59564.0,59556.0,0.335815]
[1726674703386,0.5336362,59564.0,59557.0,0.167905]
[1726674703648,0.0299772,59564.0,59563.0,0.673196]
[1726674703906,0.0299772,59564.0,59563.0,0.99708529]
[1726674704143,0.0299772,59564.0,59563.0,0.841085]
[1726674704365,0.167853,59576.0,59570.0,0.335739]
[1726674704610,0.167853,59576.0,59563.0,0.57155881]
[1726674704611,0.02982888,59575.0,59566.0,0.335759]
[1726674704826,0.02982888,59574.0,59571.0,0.167865]
[1726674705043,0.02982888,59573.0,59569.0,0.335741]
[1726674705231,0.02982888,59572.0,59570.0,0.167869]
[1726674705453,0.02982888,59571.0,59570.0,0.167869]
[1726674705658,0.02982888,59573.0,59570.0,0.167869]
[1726674705912,0.19776912,59572.0,59570.0,0.001]
[1726674706242,0.53350412,59571.0,59570.0,0.001]
[1726674706333,0.86923712,59571.0,59570.0,0.001]
[1726674706553,1.03229079,59571.0,59570.0,0.001]
[1726674707022,0.69655779,59571.0,59570.0,0.001]
[1726674707256,0.69655779,59571.0,59565.0,0.167883]
[1726674707257,0.167873,59569.0,59565.0,0.167883]
[1726674707492,0.19778112,59568.0,59564.0,0.167885]
[1726674707727,0.02990512,59567.0,59564.0,0.167885]
[1726674707973,0.02990512,59566.0,59565.0,0.167883]
[1726674709087,0.167881,59566.0,59563.0,0.00164]
[1726674709327,0.503659,59564.0,59563.0,0.00164]
[1726674709566,1.48535985,59564.0,59563.0,0.00164]
[1726674710259,1.48735985,59564.0,59563.0,0.00164]
[1726674710476,1.58735985,59564.0,59563.0,0.00164]
[1726674710692,1.58535985,59564.0,59563.0,0.00164]
[1726674711421,1.58535985,59564.0,59563.0,0.00264]
[1726674711422,1.59435985,59564.0,59563.0,0.00264]
[1726674712319,1.59439491,59564.0,59563.0,0.00264]
[1726674712542,1.52725867,59564.0,59563.0,0.00264]
[1726674712834,1.59445501,59564.0,59563.0,0.00264]
[1726674713050,1.59645501,59564.0,59563.0,0.00264]
[1726674713920,1.62645501,59564.0,59563.0,0.00264]
[1726674714377,1.62445501,59564.0,59563.0,0.00264]
[1726674714857,1.54825867,59564.0,59563.0,0.00164]
[1726674715085,1.60739478,59564.0,59563.0,0.00264]
[1726674715353,1.17162178,59564.0,59563.0,0.00264]
[1726674715609,1.50739478,59564.0,59563.0,0.00264]
[1726674715876,1.50732127,59564.0,59563.0,0.00264]
[1726674717350,1.50932127,59564.0,59563.0,0.00264]
[1726674717630,1.53932127,59564.0,59563.0,0.00264]
[1726674717876,2.03509427,59564.0,59563.0,0.00264]
[1726674718130,2.03509427,59564.0,59549.0,0.0039015]
[1726674718131,0.83963,59550.0,59549.0,0.0039015]
[1726674718373,1.06949214,59550.0,59549.0,0.0039015]
[1726674718658,1.07840256,59550.0,59549.0,0.0039015]
[1726674718910,0.74255056,59550.0,59549.0,0.0039015]
[1726674719251,0.74253852,59550.0,59549.0,0.0039015]
[1726674719433,0.40668652,59550.0,59549.0,0.0039015]
[1726674719677,0.07570685,59550.0,59549.0,0.0039015]
[1726674720221,0.04605115,59550.0,59549.0,0.8435435]
[1726674720526,0.02751634,59550.0,59549.0,1.1794005]
[1726674720708,0.01860592,59550.0,59549.0,1.1794005]
[1726674720948,0.01860592,59550.0,59549.0,0.8435435]
[1726674721227,0.02760592,59550.0,59549.0,0.8435435]
[1726674721460,0.167886,59564.0,59549.0,0.3397585]
[1726674721708,0.06685915,59563.0,59551.0,0.23414081]
[1726674721960,0.03715834,59562.0,59551.0,0.23414081]
[1726674722218,0.03715834,59561.0,59551.0,0.23414081]
[1726674722457,0.01859534,59560.0,59551.0,0.23414081]
[1726674722712,0.00888057,59561.0,59551.0,0.23414081]
[1726674722713,0.02747591,59559.0,59551.0,0.23414081]
[1726674722952,0.01859534,59558.0,59550.0,0.1801]
[1726674723194,0.00888057,59559.0,59549.0,0.0039015]
[1726674723195,0.02279306,59557.0,59549.0,0.0039015]
[1726674723433,0.01859534,59556.0,59549.0,0.0039015]
[1726674723666,0.01859534,59555.0,59549.0,0.0039015]
[1726674723900,0.00419772,59557.0,59549.0,0.0039015]
[1726674724198,0.00888057,59554.0,59549.0,0.0039015]
[1726674724465,0.365735,59571.0,59553.0,0.335835]
[1726674724700,0.00888057,59553.0,59552.0,0.8396]
[1726674724939,0.00888057,59553.0,59550.0,0.23414081]
[1726674724940,0.00888057,59564.0,59561.0,0.335786]
[1726674725167,0.167875,59568.0,59564.0,0.167885]
[1726674725416,0.00888057,59563.0,59562.0,0.83946]
[1726674725665,0.16305367,59567.0,59566.0,0.503643]
[1726674725914,0.03709932,59567.0,59566.0,0.839405]
[1726674726144,0.0801,59573.0,59570.0,0.167867]
[1726674726367,0.0801,59573.0,59566.0,0.503643]
[1726674726368,0.03710305,59567.0,59566.0,0.503643]
[1726674726589,0.03710305,59567.0,59560.0,0.23414081]
[1726674726590,0.16305367,59573.0,59572.0,0.167864]
[1726674726820,0.22986074,59573.0,59572.0,0.167864]
[1726674727291,0.22986074,59573.0,59570.0,0.167869]
[1726674727577,0.06680707,59572.0,59570.0,0.167869]
[1726674727809,0.06680707,59571.0,59570.0,0.167869]
[1726674728285,0.16805367,59573.0,59571.0,0.167866]
[1726674728535,0.06692178,59572.0,59571.0,0.167866]
[1726674729895,0.07589109,59572.0,59571.0,0.167866]
[1726674730360,0.07589109,59572.0,59570.0,0.167869]
[1726674730577,0.06692178,59571.0,59570.0,0.167869]
[1726674731019,0.06692178,59571.0,59549.0,0.1540131]
[1726674731020,0.06692178,59571.0,59555.0,0.23414081]
[1726674731237,0.06692178,59570.0,59569.0,0.167871]
[1726674731506,0.04832989,59570.0,59569.0,0.503616]
[1726674731723,0.07587383,59570.0,59569.0,0.503616]
[1726674732663,0.07587383,59570.0,59569.0,1.175106]
[1726674732885,0.06690687,59570.0,59569.0,1.175106]
[1726674733103,0.03716305,59570.0,59569.0,1.175106]
[1726674733560,0.01857463,59570.0,59569.0,1.510851]
[1726674733802,0.335635,59589.0,59569.0,0.528245]
[1726674734057,0.25175811,59583.0,59570.0,0.23414081]
[1726674734257,0.06695275,59582.0,59579.0,0.167842]
[1726674734509,0.06695275,59582.0,59573.0,0.335718]
[1726674734510,0.07114892,59581.0,59575.0,0.167853]
[1726674734738,0.07114892,59581.0,59568.0,0.335748]
[1726674734739,0.04827908,59580.0,59568.0,0.335748]
[1726674734968,0.04827908,59580.0,59563.0,0.335774]
[1726674734969,0.01870613,59579.0,59578.0,0.167845]
[1726674735195,0.0467915,59579.0,59578.0,0.167845]
[1726674735420,0.07667451,59579.0,59578.0,0.167845]
[1726674735701,0.05799763,59579.0,59578.0,0.167845]
[1726674735920,0.07667451,59579.0,59578.0,0.167845]
[1726674736137,0.07667451,59579.0,59573.0,0.335719]
[1726674736138,0.24451951,59579.0,59573.0,0.335719]
[1726674736364,0.06726602,59578.0,59576.0,0.167851]
[1726674736581,0.06726602,59577.0,59576.0,0.167851]
[1726674736807,0.07668094,59577.0,59576.0,0.839261]
[1726674737032,0.07668094,59577.0,59576.0,0.503556]
[1726674737033,0.04679793,59577.0,59576.0,0.503556]
[1726674737253,0.04679793,59577.0,59576.0,0.839261]
[1726674737479,0.03738301,59577.0,59576.0,0.839261]
[1726674737959,0.167826,59586.0,59576.0,0.839261]
[1726674737960,0.167826,59586.0,59582.0,0.167835]
[1726674738413,0.07649595,59585.0,59582.0,0.167835]
[1726674738629,0.06708701,59584.0,59582.0,0.167835]
[1726674738845,0.17723694,59585.0,59581.0,0.167837]
[1726674738846,0.06708701,59583.0,59581.0,0.167837]
[1726674739063,0.06708701,59582.0,59581.0,0.503514]
[1726674739281,0.04671882,59582.0,59581.0,0.503514]
[1726674739536,0.03730988,59582.0,59581.0,0.503514]
[1726674739989,0.04671882,59582.0,59581.0,0.839191]
[1726674740209,0.04671882,59582.0,59581.0,1.174868]
[1726674740453,0.03730988,59582.0,59581.0,1.174868]
[1726674740677,0.01869917,59582.0,59581.0,1.174868]
[1726674740919,0.00082,59593.0,59592.0,0.167807]
[1726674741176,0.01953035,59593.0,59592.0,0.503422]
[1726674741411,0.03819912,59593.0,59592.0,0.839037]
[1726674741629,0.01953035,59593.0,59592.0,0.839037]
[1726674742326,0.00082,59593.0,59592.0,0.839037]
[1726674742546,0.01182,59593.0,59592.0,0.839037]
[1726674742772,0.0305536,59593.0,59592.0,0.839037]
[1726674743226,0.03996254,59593.0,59592.0,0.839037]
[1726674743481,0.01182,59593.0,59592.0,0.839037]
[1726674743694,0.00082,59593.0,59592.0,0.839037]
[1726674745343,0.00182,59593.0,59592.0,0.839037]
[1726674745583,0.00082,59593.0,59592.0,1.174652]
[1726674746038,0.00082,59593.0,59592.0,0.839037]
[1726674746479,0.00082,59593.0,59592.0,1.174652]
[1726674747858,0.00182,59593.0,59592.0,1.174652]
[1726674748081,0.00082,59593.0,59592.0,1.174652]
[1726674748334,0.00182,59593.0,59592.0,1.174652]
[1726674750128,0.00182,59593.0,59592.0,1.36070567]
[1726674751815,0.00182,59593.0,59592.0,1.174652]
[1726674753793,0.00082,59593.0,59592.0,1.174652]
[1726674754232,0.00082,59593.0,59592.0,1.197652]
[1726674754474,0.00082,59593.0,59592.0,0.839037]
[1726674754918,0.00182,59593.0,59592.0,0.839037]
[1726674755358,0.00082,59593.0,59592.0,0.839037]
[1726674756002,0.00082,59593.0,59592.0,1.174652]
[1726674756191,0.00082,59593.0,59592.0,1.33056677]
[1726674756407,0.00082,59593.0,59592.0,0.99495177]
[1726674756844,0.00082,59593.0,59592.0,1.33056677]
[1726674757030,0.00082,59593.0,59592.0,0.99495177]
[1726674757486,0.00182,59593.0,59592.0,0.99495177]
[1726674758118,0.00082,59593.0,59592.0,0.99495177]
[1726674758549,0.00082,59593.0,59592.0,0.839037]
[1726674758762,0.00082,59593.0,59592.0,0.503422]
[1726674759198,0.0105029,59593.0,59592.0,0.503422]
[1726674759414,0.03811132,59593.0,59592.0,0.503422]
[1726674759626,0.06800954,59593.0,59592.0,0.839037]
[1726674759833,0.02945738,59593.0,59592.0,0.839037]
[1726674760049,0.02945738,59593.0,59589.0,0.33563]
[1726674760268,0.0372491,59592.0,59591.0,0.16781]
[1726674760500,0.0770028,59592.0,59591.0,0.16781]
[1726674760734,0.0397537,59592.0,59591.0,0.503431]
[1726674760968,0.0397537,59592.0,59591.0,0.839052]
[1726674760969,0.07696193,59592.0,59591.0,0.839052]
[1726674761384,0.06803893,59592.0,59591.0,0.503431]
[1726674761653,0.06803893,59592.0,59591.0,1.174673]
[1726674761895,0.01864382,59592.0,59591.0,1.36072667]
[1726674762106,0.00082,59593.0,59592.0,0.862037]
[1726674762335,0.00082,59593.0,59592.0,1.61662044]
[1726674764427,0.00182,59593.0,59592.0,1.61662044]
[1726674764861,0.00182,59593.0,59592.0,1.45356677]
[1726674764862,0.00082,59593.0,59592.0,1.45356677]
[1726674765283,0.02055951,59593.0,59592.0,1.45356677]
[1726674765500,0.01955951,59593.0,59592.0,1.45356677]
[1726674766386,0.049541,59593.0,59592.0,0.167807]
[1726674766611,0.049541,59593.0,59592.0,0.839037]
[1726674766612,0.06814719,59593.0,59592.0,0.839037]
[1726674766797,0.07812754,59593.0,59592.0,0.839037]
[1726674767076,0.07812754,59593.0,59592.0,1.174652]
[1726674767077,0.06914122,59593.0,59592.0,1.174652]
[1726674767280,0.04960666,59593.0,59592.0,1.174652]
[1726674767934,0.04960666,59593.0,59592.0,1.197652]
[1726674768376,0.0691312,59593.0,59592.0,1.197652]
[1726674768625,0.0681312,59593.0,59592.0,1.197652]
[1726674769055,0.0691312,59593.0,59592.0,1.197652]
[1726674769488,0.0691312,59593.0,59592.0,1.69632067]
[1726674770115,0.0681312,59593.0,59592.0,1.69632067]
[1726674770538,0.02038109,59593.0,59592.0,1.69632067]
[1726674770819,0.03074601,59593.0,59592.0,1.69632067]
[1726674771040,0.05044835,59593.0,59592.0,1.197652]
[1726674771252,0.06900909,59593.0,59592.0,1.197652]
[1726674771916,0.06800909,59593.0,59592.0,1.197652]
[1726674772357,0.09768544,59593.0,59592.0,1.197652]
[1726674773413,0.09868544,59593.0,59592.0,1.197652]
[1726674773845,0.09763125,59593.0,59592.0,1.197652]
[1726674774057,0.09863125,59593.0,59592.0,1.197652]
[1726674775324,0.09863125,59593.0,59592.0,1.20744155]
[1726674776590,0.09763125,59593.0,59592.0,1.20744155]
[1726674777044,0.09863125,59593.0,59592.0,1.20744155]
[1726674777894,0.09763125,59593.0,59592.0,1.20744155]
[1726674778116,0.09763125,59593.0,59592.0,0.839037]
[1726674778348,0.09863125,59593.0,59592.0,0.839037]
[1726674778793,0.09863125,59593.0,59592.0,1.174652]
[1726674779432,0.0689549,59593.0,59592.0,0.839037]
[1726674779685,0.09862054,59593.0,59592.0,0.839037]
[1726674779896,0.09762475,59593.0,59592.0,0.839037]
[1726674780125,0.0679549,59593.0,59592.0,0.839037]
[1726674780559,0.06900025,59593.0,59592.0,0.839037]
[1726674780810,0.09870674,59593.0,59592.0,0.99495177]
[1726674781082,0.06900025,59593.0,59592.0,1.01795177]
[1726674781326,0.06900025,59593.0,59592.0,1.35356677]
[1726674781551,0.06900025,59593.0,59592.0,1.01795177]
[1726674781779,0.09863595,59593.0,59592.0,0.862037]
[1726674782436,0.00182,59593.0,59592.0,0.862037]
[1726674782660,0.06893095,59593.0,59592.0,0.862037]
[1726674782904,0.06893095,59593.0,59592.0,0.839037]
[1726674783103,0.098589,59593.0,59592.0,0.839037]
[1726674783318,0.06893398,59593.0,59592.0,0.839037]
[1726674784014,0.0985906,59593.0,59592.0,0.839037]
[1726674784231,0.06893398,59593.0,59592.0,0.88909773]
[1726674784460,0.09859155,59593.0,59588.0,0.05006073]
[1726674784671,0.17987155,59592.0,59582.0,0.05006073]
[1726674784898,0.167816,59589.0,59585.0,0.05006073]
[1726674785121,0.4286188,59592.0,59582.0,0.167834]
[1726674785122,0.09667499,59588.0,59582.0,0.167834]
[1726674785348,0.09667499,59588.0,59576.0,0.12515182]
[1726674785349,0.10087089,59587.0,59580.0,0.16784]
[1726674785576,0.0099028,59588.0,59576.0,0.335702]
[1726674785577,0.0941,59585.0,59576.0,0.167851]
[1726674785791,0.09667499,59584.0,59580.0,0.16784]
[1726674786009,0.09667499,59583.0,59580.0,0.16784]
[1726674786291,0.09667499,59582.0,59580.0,0.16784]
[1726674786498,0.09630392,59582.0,59581.0,0.167838]
[1726674786714,0.261928,59585.0,59581.0,0.167838]
[1726674786929,0.09600496,59582.0,59581.0,0.167838]
[1726674787364,0.09600496,59582.0,59581.0,0.839192]
[1726674787783,0.09700496,59582.0,59581.0,0.839192]
[1726674788001,0.001,59582.0,59581.0,0.503515]
[1726674788222,0.09705088,59582.0,59581.0,0.503515]
[1726674788437,0.10690298,59582.0,59581.0,0.503515]
[1726674788644,0.09705088,59582.0,59581.0,0.839192]
[1726674789527,0.01858312,59582.0,59581.0,0.839192]
[1726674789752,0.01858312,59582.0,59581.0,1.46092267]
[1726674789965,0.00082,59593.0,59592.0,0.839037]
[1726674790179,0.06761933,59593.0,59592.0,0.839037]
[1726674790387,0.09713352,59593.0,59592.0,0.839037]
[1726674790596,0.10698562,59593.0,59592.0,0.503422]
[1726674790814,0.10698562,59593.0,59592.0,0.167807]
[1726674791023,0.10698562,59593.0,59592.0,0.503422]
[1726674791472,0.167808,59592.0,59585.0,0.05028322]
[1726674791725,0.10050909,59591.0,59587.0,0.33564]
[1726674791942,0.01402543,59591.0,59590.0,0.167813]
[1726674792159,0.01402543,59591.0,59590.0,0.503439]
[1726674792160,0.07674419,59591.0,59590.0,0.503439]
[1726674792387,0.07674419,59591.0,59590.0,0.839065]
[1726674792834,0.06691433,59591.0,59590.0,1.174691]
[1726674793053,0.06691433,59591.0,59590.0,0.839065]
[1726674793728,0.07591433,59591.0,59590.0,1.174691]
[1726674794414,0.07591433,59591.0,59590.0,0.839065]
[1726674794629,0.06691433,59591.0,59590.0,0.503439]
[1726674794849,0.06691433,59591.0,59588.0,0.335636]
[1726674794850,0.09657746,59591.0,59589.0,0.167816]
[1726674795064,0.09657746,59590.0,59589.0,0.167814]
[1726674795280,0.09657746,59590.0,59587.0,0.335642]
[1726674795506,0.09657746,59589.0,59587.0,0.167821]
[1726674795743,0.09657746,59588.0,59586.0,0.167822]
[1726674795979,0.00973479,59588.0,59587.0,0.335643]
[1726674796182,0.07700984,59588.0,59587.0,0.503464]
[1726674796477,0.0480978,59588.0,59587.0,0.839107]
[1726674796694,0.07702279,59588.0,59587.0,0.839107]
[1726674796910,0.03727073,59588.0,59587.0,0.839107]
[1726674797117,0.04695245,59588.0,59587.0,0.839107]
[1726674797341,0.067288,59588.0,59587.0,0.839107]
[1726674797547,0.069288,59588.0,59587.0,0.503464]
[1726674797751,0.067288,59588.0,59587.0,0.503464]
[1726674798376,0.0769809,59588.0,59587.0,0.503464]
[1726674798583,0.067288,59588.0,59587.0,0.503464]
[1726674798792,0.0769809,59588.0,59587.0,0.503464]
[1726674799001,0.067288,59588.0,59587.0,0.839107]
[1726674799205,0.0769809,59588.0,59587.0,0.839107]
[1726674799417,0.067288,59588.0,59587.0,0.839107]
[1726674799841,0.01850994,59588.0,59587.0,0.839107]
[1726674800048,0.00082,59593.0,59592.0,0.167807]
[1726674800275,0.07936508,59593.0,59592.0,0.167807]
[1726674800483,0.10762923,59593.0,59592.0,0.167807]
[1726674800715,0.10762923,59593.0,59592.0,0.839037]
[1726674800930,0.09793633,59593.0,59592.0,0.839037]
[1726674802282,0.09795956,59593.0,59592.0,0.839037]
[1726674802695,0.11065246,59593.0,59592.0,0.839037]
[1726674802943,0.09187504,59593.0,59592.0,0.839037]
[1726674803157,0.11084587,59593.0,59592.0,0.839037]
[1726674803373,0.09299222,59593.0,59592.0,0.839037]
[1726674803584,0.0519348,59593.0,59592.0,0.839037]
[1726674803793,0.11186309,59593.0,59592.0,0.839037]
[1726674803999,0.10786309,59593.0,59592.0,0.839037]
[1726674804225,0.10786309,59593.0,59592.0,0.503422]
[1726674804450,0.10786309,59593.0,59592.0,0.167807]
[1726674804657,0.10786309,59593.0,59592.0,0.503422]
[1726674805514,0.10786309,59593.0,59592.0,0.167807]
[1726674806176,0.10886309,59593.0,59592.0,0.167807]
[1726674806615,0.10786309,59593.0,59592.0,0.503422]
[1726674806855,0.05984903,59593.0,59592.0,0.503422]
[1726674807092,0.10878147,59593.0,59592.0,0.167807]
[1726674807331,0.10878147,59593.0,59588.0,0.503452]
[1726674807576,0.167814,59590.0,59586.0,0.167823]
[1726674807818,0.09726857,59589.0,59586.0,0.335646]
[1726674808056,0.0097296,59589.0,59588.0,0.167819]
[1726674808292,0.07707969,59589.0,59588.0,0.167819]
[1726674808538,0.09692679,59589.0,59588.0,0.167819]
[1726674808754,0.10664399,59589.0,59588.0,0.167819]
[1726674809728,0.10964399,59589.0,59588.0,0.167819]
[1726674809939,0.10964399,59589.0,59585.0,0.335654]
[1726674809940,0.27745999,59589.0,59585.0,0.335654]
[1726674810198,0.27745999,59589.0,59588.0,0.503457]
[1726674810199,0.0127296,59589.0,59588.0,0.503457]
[1726674810656,0.07032914,59589.0,59588.0,0.167819]
[1726674810911,0.0998969,59589.0,59588.0,0.167819]
[1726674811137,0.1096265,59589.0,59588.0,0.167819]
[1726674811805,0.0968969,59589.0,59588.0,0.503457]
[1726674812049,0.1066265,59589.0,59588.0,0.167819]
[1726674812265,0.1066265,59589.0,59583.0,0.335663]
[1726674812266,0.1096265,59589.0,59583.0,0.335663]
[1726674812480,0.04804761,59588.0,59587.0,0.167821]
[1726674812701,0.09685903,59588.0,59587.0,0.503464]
[1726674813145,0.10658863,59588.0,59587.0,0.503464]
[1726674813598,0.05777721,59588.0,59587.0,0.503464]
[1726674813813,0.10659598,59588.0,59587.0,0.503464]
[1726674814031,0.09686638,59588.0,59587.0,0.503464]
[1726674814285,0.10659598,59588.0,59587.0,0.503464]
[1726674815913,0.10659598,59588.0,59587.0,0.839107]
[1726674816354,0.09686638,59588.0,59587.0,0.99502177]
[1726674816782,0.09687323,59588.0,59587.0,0.99502177]
[1726674819444,0.09687323,59588.0,59587.0,1.33066477]
[1726674820115,0.09687323,59588.0,59587.0,1.38095494]
[1726674820554,0.06729005,59588.0,59587.0,1.38095494]
[1726674821611,0.09682214,59588.0,59587.0,1.38095494]
[1726674823216,0.09682214,59588.0,59587.0,1.33066477]
[1726674823690,0.09678661,59588.0,59587.0,1.16284377]
[1726674824843,0.09678661,59588.0,59587.0,1.17310003]
[1726674825283,0.09671807,59588.0,59587.0,1.17310003]
[1726674826270,0.09671807,59588.0,59587.0,1.006929]
[1726674826521,0.09671807,59588.0,59587.0,1.05726108]
[1726674826781,0.09671807,59588.0,59587.0,1.006929]
[1726674827050,0.09671807,59588.0,59587.0,0.335643]
[1726674827051,0.03002052,59588.0,59587.0,0.335643]
[1726674827308,0.07806085,59588.0,59584.0,0.05033208]
[1726674827533,0.07806085,59588.0,59587.0,0.503464]
[1726674827534,0.00974891,59588.0,59587.0,0.503464]
[1726674827782,0.1064796,59588.0,59587.0,0.503464]
[1726674828440,0.1064796,59588.0,59587.0,0.839107]
[1726674828955,0.09673069,59588.0,59587.0,0.839107]
[1726674829173,0.1064298,59588.0,59587.0,0.839107]
[1726674829397,0.1064298,59588.0,59587.0,0.503464]
[1726674830062,0.1064298,59588.0,59582.0,0.05034342]
[1726674830317,0.1064298,59588.0,59582.0,0.167834]
[1726674830318,0.167825,59586.0,59582.0,0.167834]
[1726674830529,0.167825,59586.0,59580.0,0.335681]
[1726674830530,0.00419594,59585.0,59583.0,0.167832]
[1726674830751,0.05233811,59585.0,59583.0,0.167832]
[1726674830986,0.10608121,59584.0,59583.0,0.167832]
[1726674831823,0.167833,59583.0,59579.0,0.167843]
[1726674832075,0.0963821,59582.0,59579.0,0.335687]
[1726674832311,0.00800277,59582.0,59581.0,0.167838]
[1726674832592,0.10438886,59582.0,59581.0,0.503515]
[1726674832817,0.09638609,59582.0,59581.0,0.503515]
[1726674833039,0.10438886,59582.0,59581.0,0.503515]
[1726674833481,0.10438886,59582.0,59581.0,0.167838]
[1726674833699,0.05582938,59582.0,59581.0,0.167838]
[1726674833931,0.10525028,59582.0,59581.0,0.167838]
[1726674834374,0.10525028,59582.0,59581.0,0.503515]
[1726674834602,0.07581852,59582.0,59581.0,0.88954315]
[1726674834820,0.07581852,59582.0,59581.0,1.46162345]
[1726674835071,0.01962342,59582.0,59581.0,1.36092267]
[1726674835291,0.01862342,59582.0,59581.0,1.36092267]
[1726674835534,0.01962342,59582.0,59581.0,1.48679463]
[1726674835747,0.01862342,59582.0,59581.0,1.48679463]
[1726674835974,0.03709664,59582.0,59581.0,1.4616206]
[1726674836210,0.03709664,59582.0,59581.0,1.48679463]
[1726674836211,0.03809993,59582.0,59581.0,1.48679463]
[1726674836446,0.01962342,59582.0,59581.0,1.48679463]
[1726674836879,0.000821,59588.0,59587.0,0.167821]
[1726674837107,0.000821,59588.0,59587.0,0.32373577]
[1726674837330,0.06641659,59588.0,59587.0,0.32373577]
[1726674837548,0.06641659,59588.0,59587.0,0.70972852]
[1726674838018,0.06641659,59588.0,59587.0,0.99502177]
[1726674838226,0.06641659,59588.0,59587.0,1.38101452]
[1726674839133,0.06741659,59588.0,59587.0,1.33066477]
[1726674839391,0.06741659,59588.0,59586.0,0.335648]
[1726674839653,0.001821,59588.0,59587.0,0.503464]
[1726674839894,0.07552528,59588.0,59587.0,0.503464]
[1726674840425,0.07452528,59588.0,59587.0,0.839107]
[1726674840911,0.06646251,59588.0,59587.0,0.839107]
[1726674842695,0.0662413,59588.0,59587.0,0.839107]
[1726674842969,0.0662413,59588.0,59587.0,0.88946089]
[1726674843213,0.0662413,59588.0,59587.0,0.839107]
[1726674843456,0.0662413,59588.0,59587.0,1.38101866]
[1726674844217,0.0662413,59588.0,59587.0,1.33066477]
[1726674845780,0.000821,59588.0,59587.0,1.33066477]
[1726674846018,0.03724853,59588.0,59587.0,1.33066477]
[1726674846763,0.06717148,59588.0,59587.0,1.33066477]
[1726674847023,0.06717148,59588.0,59587.0,1.40619341]
[1726674847536,0.03824853,59588.0,59587.0,1.40619341]
[1726674849104,0.03826463,59588.0,59587.0,1.40619341]
[1726674849380,0.03826463,59588.0,59587.0,1.40619278]
[1726674850831,0.03826463,59588.0,59587.0,1.43136879]
[1726674851098,0.03826463,59588.0,59587.0,1.33066477]
[1726674851590,0.03826463,59588.0,59583.0,0.0503536]
[1726674851839,0.001821,59588.0,59587.0,0.167821]
[1726674852078,0.03807392,59588.0,59586.0,0.167824]
[1726674852299,0.03625292,59587.0,59586.0,0.167824]
[1726674852510,0.04439878,59587.0,59586.0,0.167824]
[1726674853196,0.02605613,59587.0,59582.0,0.0503536]
[1726674853411,0.03624894,59586.0,59581.0,0.0503536]
[1726674853629,0.03624894,59585.0,59581.0,0.0503536]
[1726674853841,0.00915084,59587.0,59581.0,0.0503536]
[1726674853842,0.001,59587.0,59585.0,0.167826]
[1726674854054,0.00419583,59587.0,59586.0,0.167824]
[1726674854307,0.000821,59588.0,59587.0,0.167821]
[1726674854527,0.03701617,59588.0,59585.0,0.167825]
[1726674854734,0.03701617,59588.0,59583.0,0.05035631]